[Event "*** Titled Tuesday 3|2 Blitz"]
[Site "Chess.com"]
[Date "2016.06.07"]
[Round "4"]
[White "severomorskij"]
[Black "IIIlllII1llIl"]
[Result "0-1"]
[WhiteElo "2594"]
[BlackElo "2437"]
[TimeControl "180+2"]
[EndTime "17:47:58 PDT"]
[Termination "IIIlllII1llIl won on time"]

1. d4 {[%clk 0:03:01.9]} 1... Nf6 {[%clk 0:02:59.7]} 2. c4 {[%clk 0:03:02.9]}
2... c5 {[%clk 0:03:00.7]} 3. d5 {[%clk 0:03:03.6]} 3... e6 {[%clk 0:03:02.2]}
4. Nc3 {[%clk 0:03:04.1]} 4... exd5 {[%clk 0:03:03.7]} 5. cxd5 {[%clk
0:03:05.5]} 5... d6 {[%clk 0:03:05.3]} 6. e4 {[%clk 0:03:06.8]} 6... g6 {[%clk
0:03:06.8]} 7. f4 {[%clk 0:03:08.1]} 7... Bg7 {[%clk 0:03:07.8]} 8. Bb5+ {[%clk
0:03:08.9]} 8... Nfd7 {[%clk 0:03:09]} 9. a4 {[%clk 0:03:08.3]} 9... O-O {[%clk
0:03:09]} 10. Nf3 {[%clk 0:03:09]} 10... Na6 {[%clk 0:03:10.4]} 11. O-O {[%clk
0:03:09.8]} 11... Nb4 {[%clk 0:03:11.6]} 12. Re1 {[%clk 0:03:05.1]} 12... a6
{[%clk 0:03:12.8]} 13. Bf1 {[%clk 0:03:01.3]} 13... Re8 {[%clk 0:03:13.2]} 14.
Be3 {[%clk 0:02:51.7]} 14... Nf6 {[%clk 0:03:14.2]} 15. Bf2 {[%clk 0:02:52.6]}
15... Bg4 {[%clk 0:03:14.7]} 16. h3 {[%clk 0:02:52]} 16... Bxf3 {[%clk 0:03:15]}
17. Qxf3 {[%clk 0:02:51.3]} 17... Nc2 {[%clk 0:03:14.9]} 18. Bh4 {[%clk
0:02:33.6]} 18... Nxe1 {[%clk 0:02:57.3]} 19. Rxe1 {[%clk 0:02:33.5]} 19... Qc7
{[%clk 0:02:58.1]} 20. Bc4 {[%clk 0:02:07.5]} 20... Nd7 {[%clk 0:02:44.9]} 21.
e5 {[%clk 0:02:02.6]} 21... Nb6 {[%clk 0:02:08.3]} 22. Ba2 {[%clk 0:01:55.7]}
22... dxe5 {[%clk 0:02:09.6]} 23. f5 {[%clk 0:01:54.2]} 23... Nc8 {[%clk
0:01:24.1]} 24. f6 {[%clk 0:01:29]} 24... Bf8 {[%clk 0:00:46.8]} 25. Bg3 {[%clk
0:01:21]} 25... c4 {[%clk 0:00:31.8]} 26. h4 {[%clk 0:01:14.7]} 26... b5 {[%clk
0:00:29.4]} 27. h5 {[%clk 0:01:04.5]} 27... b4 {[%clk 0:00:27.6]} 28. Ne4 {[%clk
0:01:04.1]} 28... b3 {[%clk 0:00:25.1]} 29. Bb1 {[%clk 0:01:01]} 29... Nd6
{[%clk 0:00:26.3]} 30. hxg6 {[%clk 0:00:56.8]} 30... hxg6 {[%clk 0:00:27.4]} 31.
Ng5 {[%clk 0:00:46.8]} 31... c3 {[%clk 0:00:19.9]} 32. bxc3 {[%clk 0:00:44.6]}
32... Bh6 {[%clk 0:00:18]} 33. Ne4 {[%clk 0:00:33]} 33... Nf5 {[%clk 0:00:15.3]}
34. Bf2 {[%clk 0:00:29.5]} 34... Rad8 {[%clk 0:00:10.5]} 35. g4 {[%clk 0:00:30]}
35... Nd6 {[%clk 0:00:11.1]} 36. g5 {[%clk 0:00:30.1]} 36... Bf8 {[%clk
0:00:10.8]} 37. Kg2 {[%clk 0:00:31]} 37... Nxe4 {[%clk 0:00:11.1]} 38. Bxe4
{[%clk 0:00:32]} 38... Rc8 {[%clk 0:00:08.5]} 39. d6 {[%clk 0:00:25.3]} 39...
Bxd6 {[%clk 0:00:07.1]} 40. Rh1 {[%clk 0:00:18.8]} 40... Qxc3 {[%clk 0:00:07.1]}
41. Be3 {[%clk 0:00:19.3]} 41... Qb2+ {[%clk 0:00:07.4]} 42. Kg3 {[%clk
0:00:16.9]} 42... Rc3 {[%clk 0:00:06.3]} 43. Kg4 {[%clk 0:00:16.2]} 43... Rxe3
{[%clk 0:00:06.9]} 44. Qxe3 {[%clk 0:00:17]} 44... Qd4 {[%clk 0:00:08.6]} 45.
Qf3 {[%clk 0:00:13.5]} 45... Rc8 {[%clk 0:00:07.6]} 46. Rd1 {[%clk 0:00:14.2]}
46... Qb4 {[%clk 0:00:07.4]} 47. Qh1 {[%clk 0:00:07]} 47... Rc4 {[%clk
0:00:04.3]} 48. Re1 {[%clk 0:00:04.3]} 48... b2 {[%clk 0:00:05.4]} 49. Kf3
{[%clk 0:00:05.1]} 49... Rxe4 {[%clk 0:00:05.4]} 50. Rxe4 {[%clk 0:00:04]} 50...
b1=Q {[%clk 0:00:06.9]} 0-1

[Event "*** Titled Tuesday 3|2 Blitz"]
[Site "Chess.com"]
[Date "2016.06.07"]
[Round "4"]
[White "aripov96"]
[Black "FearlessKing64"]
[Result "1-0"]
[WhiteElo "2245"]
[BlackElo "2095"]
[TimeControl "180+2"]
[EndTime "17:48:09 PDT"]
[Termination "aripov96 won by checkmate"]

1. Nf3 {[%clk 0:03:01.9]} 1... Nf6 {[%clk 0:02:40.4]} 2. g3 {[%clk 0:03:00.3]}
2... g6 {[%clk 0:02:40.4]} 3. Bg2 {[%clk 0:03:01.5]} 3... Bg7 {[%clk 0:02:41.7]}
4. O-O {[%clk 0:03:03.4]} 4... O-O {[%clk 0:02:42.8]} 5. c4 {[%clk 0:03:04.9]}
5... d5 {[%clk 0:02:43.8]} 6. cxd5 {[%clk 0:03:05.4]} 6... Nxd5 {[%clk
0:02:44.3]} 7. Nc3 {[%clk 0:03:07.3]} 7... Nb6 {[%clk 0:02:45]} 8. d4 {[%clk
0:03:05.4]} 8... Nc6 {[%clk 0:02:38.3]} 9. e3 {[%clk 0:02:51.8]} 9... a5 {[%clk
0:02:37.5]} 10. Qe2 {[%clk 0:02:52.3]} 10... Bg4 {[%clk 0:02:36.2]} 11. Rd1
{[%clk 0:02:52.5]} 11... Nb4 {[%clk 0:02:29.8]} 12. h3 {[%clk 0:02:50.3]} 12...
Bxf3 {[%clk 0:02:13.6]} 13. Bxf3 {[%clk 0:02:48.3]} 13... c6 {[%clk 0:02:14.9]}
14. a3 {[%clk 0:02:39.4]} 14... N4d5 {[%clk 0:02:15.2]} 15. e4 {[%clk
0:02:34.1]} 15... Nxc3 {[%clk 0:02:13.3]} 16. bxc3 {[%clk 0:02:36]} 16... Qd7
{[%clk 0:02:12]} 17. Rb1 {[%clk 0:02:33.6]} 17... Ra6 {[%clk 0:02:00.1]} 18. Be3
{[%clk 0:02:29.7]} 18... Na4 {[%clk 0:01:53.4]} 19. Qc2 {[%clk 0:02:25.7]} 19...
b5 {[%clk 0:01:53.4]} 20. c4 {[%clk 0:02:18.3]} 20... Rc8 {[%clk 0:01:49]} 21.
Qd3 {[%clk 0:02:05.9]} 21... Rb6 {[%clk 0:01:40.7]} 22. Bg4 {[%clk 0:01:44.9]}
22... e6 {[%clk 0:01:39]} 23. cxb5 {[%clk 0:01:38.6]} 23... Rxb5 {[%clk
0:01:33]} 24. Rdc1 {[%clk 0:01:15.8]} 24... Rcb8 {[%clk 0:01:21.4]} 25. Rxb5
{[%clk 0:01:02.7]} 25... cxb5 {[%clk 0:01:23.3]} 26. Qc2 {[%clk 0:00:51.3]}
26... Nb6 {[%clk 0:01:14]} 27. d5 {[%clk 0:00:48.4]} 27... Nc4 {[%clk
0:01:11.7]} 28. Bf4 {[%clk 0:00:43.5]} 28... Rc8 {[%clk 0:00:59]} 29. dxe6
{[%clk 0:00:39.8]} 29... fxe6 {[%clk 0:00:59.6]} 30. Rd1 {[%clk 0:00:27.9]}
30... Qe7 {[%clk 0:00:57.3]} 31. Qb3 {[%clk 0:00:28.6]} 31... h5 {[%clk
0:00:49]} 32. Be2 {[%clk 0:00:23]} 32... a4 {[%clk 0:00:38.5]} 33. Qxb5 {[%clk
0:00:21.1]} 33... Nxa3 {[%clk 0:00:39.6]} 34. Qxa4 {[%clk 0:00:21.7]} 34... e5
{[%clk 0:00:37.1]} 35. Rd7 {[%clk 0:00:21.9]} 35... Qe8 {[%clk 0:00:25.4]} 36.
Qb3+ {[%clk 0:00:18.2]} 36... Kh8 {[%clk 0:00:23.7]} 37. Qb7 {[%clk 0:00:12.4]}
37... Qf8 {[%clk 0:00:18.6]} 38. Be3 {[%clk 0:00:10]} 38... Nc4 {[%clk
0:00:17.3]} 39. Bxc4 {[%clk 0:00:11]} 39... Rxc4 {[%clk 0:00:18.9]} 40. Kg2
{[%clk 0:00:10.8]} 40... Rc8 {[%clk 0:00:19.7]} 41. Rf7 {[%clk 0:00:11.9]} 41...
Qg8 {[%clk 0:00:20.1]} 42. Rxg7 {[%clk 0:00:11.9]} 42... Qxg7 {[%clk 0:00:20.3]}
43. Qxc8+ {[%clk 0:00:13.2]} 43... Kh7 {[%clk 0:00:22.2]} 44. Qe6 {[%clk
0:00:14]} 44... Kh8 {[%clk 0:00:21.2]} 45. Qd5 {[%clk 0:00:15.2]} 45... Kh7
{[%clk 0:00:21.5]} 46. Bc5 {[%clk 0:00:16.8]} 46... h4 {[%clk 0:00:19.5]} 47.
Bd6 {[%clk 0:00:17.8]} 47... hxg3 {[%clk 0:00:19.8]} 48. Kxg3 {[%clk 0:00:17.9]}
48... Qf6 {[%clk 0:00:18.5]} 49. Bxe5 {[%clk 0:00:18.9]} 49... Qg5+ {[%clk
0:00:19.6]} 50. Kf3 {[%clk 0:00:20.3]} 50... Qh5+ {[%clk 0:00:20.3]} 51. Ke3
{[%clk 0:00:21.8]} 51... Qxh3+ {[%clk 0:00:19.4]} 52. f3 {[%clk 0:00:23.3]}
52... Qf1 {[%clk 0:00:17.4]} 53. Qf7+ {[%clk 0:00:24.1]} 53... Kh6 {[%clk
0:00:15.7]} 54. Bf4+ {[%clk 0:00:25.2]} 54... g5 {[%clk 0:00:11.9]} 55. Qf6+
{[%clk 0:00:23.1]} 55... Kh7 {[%clk 0:00:12.3]} 56. Qf5+ {[%clk 0:00:23.9]}
56... Kg8 {[%clk 0:00:11.6]} 57. Qxg5+ {[%clk 0:00:25.1]} 57... Kf8 {[%clk
0:00:12.4]} 58. Bd6+ {[%clk 0:00:25.9]} 58... Kf7 {[%clk 0:00:12.2]} 59. Qf5+
{[%clk 0:00:26.4]} 59... Kg8 {[%clk 0:00:11.2]} 60. Qg6+ {[%clk 0:00:26.7]}
60... Kh8 {[%clk 0:00:12.4]} 61. Be5# {[%clk 0:00:28.4]} 1-0

[Event "*** Titled Tuesday 3|2 Blitz"]
[Site "Chess.com"]
[Date "2016.06.07"]
[Round "4"]
[White "ZEN-22"]
[Black "anon102030"]
[Result "0-1"]
[WhiteElo "2391"]
[BlackElo "2511"]
[TimeControl "180+2"]
[EndTime "17:48:26 PDT"]
[Termination "anon102030 won by checkmate"]

1. e4 {[%clk 0:02:53.7]} 1... e5 {[%clk 0:03:00.6]} 2. Nc3 {[%clk 0:02:50.9]}
2... Nc6 {[%clk 0:03:01.8]} 3. f4 {[%clk 0:02:52.2]} 3... d6 {[%clk 0:02:55.5]}
4. Nf3 {[%clk 0:02:52.3]} 4... a6 {[%clk 0:02:50.8]} 5. Bc4 {[%clk 0:02:51.3]}
5... Be7 {[%clk 0:02:45.4]} 6. d3 {[%clk 0:02:48.1]} 6... Nf6 {[%clk 0:02:46.9]}
7. fxe5 {[%clk 0:02:48.8]} 7... dxe5 {[%clk 0:02:47.2]} 8. O-O {[%clk
0:02:49.8]} 8... Bc5+ {[%clk 0:02:46.4]} 9. Kh1 {[%clk 0:02:50.2]} 9... O-O
{[%clk 0:02:43.2]} 10. a3 {[%clk 0:02:50.8]} 10... h6 {[%clk 0:02:37.8]} 11. Qe1
{[%clk 0:02:50.9]} 11... b5 {[%clk 0:02:33.4]} 12. Ba2 {[%clk 0:02:47.9]} 12...
Be6 {[%clk 0:02:21.8]} 13. Bxe6 {[%clk 0:02:25.9]} 13... fxe6 {[%clk 0:02:23.7]}
14. Be3 {[%clk 0:02:27]} 14... Bxe3 {[%clk 0:02:17]} 15. Qxe3 {[%clk 0:02:27.6]}
15... Nd4 {[%clk 0:02:18.7]} 16. Rac1 {[%clk 0:02:20.9]} 16... Ng4 {[%clk
0:02:09.4]} 17. Qg1 {[%clk 0:02:21.4]} 17... Qd6 {[%clk 0:02:02]} 18. h3 {[%clk
0:02:08.9]} 18... Nf6 {[%clk 0:02:02.3]} 19. Qh2 {[%clk 0:02:06]} 19... Nxf3
{[%clk 0:01:47.2]} 20. Rxf3 {[%clk 0:02:06.5]} 20... Nh5 {[%clk 0:01:45]} 21.
Rcf1 {[%clk 0:02:03.4]} 21... Rxf3 {[%clk 0:01:39.4]} 22. Rxf3 {[%clk
0:02:04.3]} 22... Rf8 {[%clk 0:01:40.8]} 23. Rxf8+ {[%clk 0:01:49.7]} 23... Qxf8
{[%clk 0:01:41.4]} 24. Kg1 {[%clk 0:01:50.3]} 24... Qc5+ {[%clk 0:01:28.6]} 25.
Kf1 {[%clk 0:01:42.4]} 25... Qe3 {[%clk 0:01:11]} 26. Ne2 {[%clk 0:01:42.5]}
26... Nf4 {[%clk 0:01:06]} 27. g3 {[%clk 0:01:20.9]} 27... Nxe2 {[%clk
0:01:05.4]} 28. Qxe2 {[%clk 0:01:21.8]} 28... Qc1+ {[%clk 0:00:57.7]} 29. Kg2
{[%clk 0:01:22.2]} 29... Qxb2 {[%clk 0:00:59.2]} 30. Qh5 {[%clk 0:01:21.8]}
30... Qxc2+ {[%clk 0:00:59.8]} 31. Kg1 {[%clk 0:01:22.5]} 31... Qb1+ {[%clk
0:00:48.6]} 32. Kf2 {[%clk 0:01:20.9]} 32... Qb2+ {[%clk 0:00:49.6]} 33. Ke1
{[%clk 0:01:18.6]} 33... Kf8 {[%clk 0:00:50.5]} 34. Qf3+ {[%clk 0:01:17.3]}
34... Ke7 {[%clk 0:00:50.9]} 35. Qg4 {[%clk 0:01:17.9]} 35... g5 {[%clk
0:00:50.2]} 36. Qh5 {[%clk 0:01:18.9]} 36... Qc1+ {[%clk 0:00:45.3]} 37. Ke2
{[%clk 0:01:19.8]} 37... Qc2+ {[%clk 0:00:45.8]} 38. Ke3 {[%clk 0:01:19.3]}
38... Qg2 {[%clk 0:00:36.8]} 39. Qxh6 {[%clk 0:01:18.1]} 39... Qxg3+ {[%clk
0:00:37.9]} 40. Ke2 {[%clk 0:01:18.8]} 40... Qg2+ {[%clk 0:00:37]} 41. Ke3
{[%clk 0:01:20]} 41... Qg3+ {[%clk 0:00:38.1]} 42. Ke2 {[%clk 0:01:21.3]} 42...
Qh2+ {[%clk 0:00:33]} 43. Ke3 {[%clk 0:01:19.3]} 43... Qf4+ {[%clk 0:00:34.9]}
44. Ke2 {[%clk 0:01:20.5]} 44... a5 {[%clk 0:00:35.2]} 45. Qg7+ {[%clk 0:01:15]}
45... Kd6 {[%clk 0:00:36.4]} 46. Qh8 {[%clk 0:01:16.4]} 46... b4 {[%clk
0:00:23]} 47. axb4 {[%clk 0:01:17.3]} 47... axb4 {[%clk 0:00:24.9]} 48. Qd8+
{[%clk 0:01:17.7]} 48... Kc6 {[%clk 0:00:26.8]} 49. Qe8+ {[%clk 0:01:16.9]}
49... Kc5 {[%clk 0:00:22.1]} 50. Qe7+ {[%clk 0:01:14.5]} 50... Kb5 {[%clk
0:00:21.6]} 51. Qxc7 {[%clk 0:01:13]} 51... Qh2+ {[%clk 0:00:21.6]} 52. Ke3
{[%clk 0:01:14.4]} 52... Qxh3+ {[%clk 0:00:22.8]} 53. Ke2 {[%clk 0:01:15]} 53...
Qh2+ {[%clk 0:00:24.6]} 54. Ke3 {[%clk 0:01:16.4]} 54... Qf4+ {[%clk 0:00:25.8]}
55. Ke2 {[%clk 0:01:17.8]} 55... Qg4+ {[%clk 0:00:27.5]} 56. Ke3 {[%clk
0:01:19]} 56... Qg3+ {[%clk 0:00:29.1]} 57. Ke2 {[%clk 0:01:20.3]} 57... Qg2+
{[%clk 0:00:30.7]} 58. Ke3 {[%clk 0:01:21.9]} 58... Qb2 {[%clk 0:00:31.1]} 59.
Qd7+ {[%clk 0:01:21.9]} 59... Kc5 {[%clk 0:00:28.3]} 60. Qc7+ {[%clk 0:01:22.8]}
60... Kb5 {[%clk 0:00:29.3]} 61. Qb7+ {[%clk 0:01:23.2]} 61... Ka4 {[%clk
0:00:29.8]} 62. Qd7+ {[%clk 0:01:22.4]} 62... Kb3 {[%clk 0:00:29.1]} 63. Qxe6+
{[%clk 0:01:23.4]} 63... Kc2 {[%clk 0:00:30.7]} 64. Qh3 {[%clk 0:01:17.8]} 64...
Qc1+ {[%clk 0:00:30.5]} 65. Ke2 {[%clk 0:01:18.1]} 65... b3 {[%clk 0:00:32.3]}
66. Qc8+ {[%clk 0:01:17.7]} 66... Kb1 {[%clk 0:00:33.9]} 67. Qa6 {[%clk
0:01:18]} 67... Qc2+ {[%clk 0:00:28.7]} 68. Ke1 {[%clk 0:01:18.4]} 68... b2
{[%clk 0:00:25.6]} 69. Qb5 {[%clk 0:01:18.9]} 69... Kc1 {[%clk 0:00:25.1]} 70.
Qxe5 {[%clk 0:01:11.7]} 70... Qd2+ {[%clk 0:00:26]} 71. Kf1 {[%clk 0:01:12.6]}
71... b1=Q {[%clk 0:00:27.9]} 72. Qg3 {[%clk 0:00:53.7]} 72... Kc2+ {[%clk
0:00:27.1]} 73. Qe1 {[%clk 0:00:55.6]} 73... Qbxe1# {[%clk 0:00:27.7]} 0-1

[Event "*** Titled Tuesday 3|2 Blitz"]
[Site "Chess.com"]
[Date "2016.06.07"]
[Round "4"]
[White "Cruel_Yaro"]
[Black "pKiLz5Rn9b"]
[Result "1/2-1/2"]
[WhiteElo "2548"]
[BlackElo "2459"]
[TimeControl "180+2"]
[EndTime "17:49:45 PDT"]
[Termination "Game drawn - insufficient material"]

1. d4 {[%clk 0:03:00.3]} 1... e6 {[%clk 0:03:01.3]} 2. c4 {[%clk 0:03:01.3]}
2... Nf6 {[%clk 0:03:02.6]} 3. Nf3 {[%clk 0:03:01.1]} 3... b6 {[%clk 0:03:03.6]}
4. g3 {[%clk 0:03:01.8]} 4... Bb7 {[%clk 0:03:04.3]} 5. Bg2 {[%clk 0:03:02.2]}
5... d5 {[%clk 0:03:05.9]} 6. cxd5 {[%clk 0:03:01.6]} 6... exd5 {[%clk
0:03:07.2]} 7. O-O {[%clk 0:03:02.5]} 7... Be7 {[%clk 0:03:08.8]} 8. Nc3 {[%clk
0:03:03.1]} 8... O-O {[%clk 0:03:10.1]} 9. Bf4 {[%clk 0:03:02.8]} 9... Na6
{[%clk 0:03:11.4]} 10. Ne5 {[%clk 0:03:02.6]} 10... c5 {[%clk 0:03:12.4]} 11.
Rc1 {[%clk 0:03:03.2]} 11... Re8 {[%clk 0:03:13.8]} 12. e3 {[%clk 0:03:01.6]}
12... h6 {[%clk 0:03:11.5]} 13. dxc5 {[%clk 0:03:00.3]} 13... Nxc5 {[%clk
0:03:11]} 14. Nd3 {[%clk 0:02:58.6]} 14... Ne6 {[%clk 0:03:07.4]} 15. Be5 {[%clk
0:02:58.7]} 15... Ne4 {[%clk 0:03:08.5]} 16. Nf4 {[%clk 0:02:53.4]} 16... Nxf4
{[%clk 0:03:04.8]} 17. gxf4 {[%clk 0:02:45.2]} 17... Bc5 {[%clk 0:02:52.9]} 18.
Nxe4 {[%clk 0:02:31.7]} 18... dxe4 {[%clk 0:02:53.9]} 19. Qg4 {[%clk 0:02:32.4]}
19... f6 {[%clk 0:02:19.8]} 20. Rfd1 {[%clk 0:02:30.6]} 20... Qc8 {[%clk
0:02:19.5]} 21. Qxc8 {[%clk 0:02:19.8]} 21... Raxc8 {[%clk 0:02:19.6]} 22. Bc3
{[%clk 0:02:17.5]} 22... Red8 {[%clk 0:02:16.6]} 23. Bh3 {[%clk 0:02:15.4]}
23... Rb8 {[%clk 0:01:54.1]} 24. b4 {[%clk 0:02:07.8]} 24... Bd6 {[%clk
0:01:47.3]} 25. Be6+ {[%clk 0:02:07.2]} 25... Kf8 {[%clk 0:01:46]} 26. a4 {[%clk
0:01:57.9]} 26... Ke7 {[%clk 0:01:46.9]} 27. Bf5 {[%clk 0:01:58.7]} 27... Kf7
{[%clk 0:01:32.9]} 28. Rd4 {[%clk 0:01:54.4]} 28... Be7 {[%clk 0:01:17]} 29. Rc4
{[%clk 0:01:36.6]} 29... g6 {[%clk 0:01:11.3]} 30. Bh3 {[%clk 0:01:30.6]} 30...
Bc8 {[%clk 0:00:58.3]} 31. Bf1 {[%clk 0:01:17.4]} 31... Be6 {[%clk 0:00:38.3]}
32. Rc7 {[%clk 0:01:06.7]} 32... Rbc8 {[%clk 0:00:26.1]} 33. Bd4 {[%clk
0:00:59.8]} 33... Rxc7 {[%clk 0:00:26.2]} 34. Rxc7 {[%clk 0:01:00.1]} 34... Rd7
{[%clk 0:00:27.8]} 35. Rxd7 {[%clk 0:00:52.9]} 35... Bxd7 {[%clk 0:00:29.7]} 36.
b5 {[%clk 0:00:51.6]} 36... Bb4 {[%clk 0:00:26.2]} 37. Bg2 {[%clk 0:00:34]}
37... f5 {[%clk 0:00:26.6]} 38. f3 {[%clk 0:00:34.2]} 38... exf3 {[%clk
0:00:26.8]} 39. Bxf3 {[%clk 0:00:35.1]} 39... Be6 {[%clk 0:00:28.4]} 40. Bd1
{[%clk 0:00:34]} 40... g5 {[%clk 0:00:22.7]} 41. Be5 {[%clk 0:00:34.6]} 41...
Bc8 {[%clk 0:00:18.5]} 42. Bb3+ {[%clk 0:00:29.8]} 42... Be6 {[%clk 0:00:15.7]}
43. Bc2 {[%clk 0:00:26.5]} 43... Bc8 {[%clk 0:00:09.8]} 44. Bd3 {[%clk
0:00:20.1]} 44... Bc5 {[%clk 0:00:09.5]} 45. Kf2 {[%clk 0:00:20.4]} 45... g4
{[%clk 0:00:07.4]} 46. Bb8 {[%clk 0:00:20.5]} 46... Bb4 {[%clk 0:00:08.6]} 47.
Bxa7 {[%clk 0:00:21.3]} 47... Ba5 {[%clk 0:00:10.5]} 48. Bb8 {[%clk 0:00:19.6]}
48... h5 {[%clk 0:00:11.5]} 49. e4 {[%clk 0:00:17.1]} 49... fxe4 {[%clk
0:00:11.3]} 50. Bxe4 {[%clk 0:00:18.7]} 50... h4 {[%clk 0:00:10.9]} 51. Be5
{[%clk 0:00:17.6]} 51... Be6 {[%clk 0:00:08]} 52. Bc2 {[%clk 0:00:16.9]} 52...
Bd5 {[%clk 0:00:08.8]} 53. f5 {[%clk 0:00:17.8]} 53... Bb4 {[%clk 0:00:07.9]}
54. Bd4 {[%clk 0:00:16]} 54... Bd6 {[%clk 0:00:08.5]} 55. Kg1 {[%clk 0:00:15.5]}
55... Bc7 {[%clk 0:00:09.9]} 56. Bd1 {[%clk 0:00:15.9]} 56... g3 {[%clk
0:00:08.9]} 57. hxg3 {[%clk 0:00:15.2]} 57... Bxg3 {[%clk 0:00:10.1]} 58. Bg4
{[%clk 0:00:13.7]} 58... Bc7 {[%clk 0:00:10.9]} 59. Bf2 {[%clk 0:00:06.4]} 59...
Bd8 {[%clk 0:00:10.1]} 60. Bd1 {[%clk 0:00:05.8]} 60... Be4 {[%clk 0:00:07.5]}
61. Bg4 {[%clk 0:00:04]} 61... Bc2 {[%clk 0:00:05.9]} 62. Bh5+ {[%clk
0:00:05.3]} 62... Kf8 {[%clk 0:00:06.5]} 63. a5 {[%clk 0:00:06.6]} 63... bxa5
{[%clk 0:00:07.4]} 64. b6 {[%clk 0:00:07.8]} 64... a4 {[%clk 0:00:09]} 65. b7
{[%clk 0:00:08.7]} 65... Bc7 {[%clk 0:00:10.3]} 66. Bxh4 {[%clk 0:00:09.4]}
66... a3 {[%clk 0:00:11.9]} 67. Bf6 {[%clk 0:00:07.3]} 67... Bxf5 {[%clk
0:00:10.9]} 68. Kf2 {[%clk 0:00:08.6]} 68... Be4 {[%clk 0:00:09.4]} 69. Bf3
{[%clk 0:00:09.3]} 69... Bxf3 {[%clk 0:00:08.9]} 70. Kxf3 {[%clk 0:00:10.4]}
70... Kf7 {[%clk 0:00:10.5]} 71. Bc3 {[%clk 0:00:10.8]} 71... Ke6 {[%clk
0:00:11.7]} 72. Ke4 {[%clk 0:00:12.2]} 72... Kd7 {[%clk 0:00:13.2]} 73. Kd5
{[%clk 0:00:13]} 73... Bb8 {[%clk 0:00:13.2]} 74. Ba5 {[%clk 0:00:11.5]} 74...
a2 {[%clk 0:00:11.4]} 75. Bc3 {[%clk 0:00:12.5]} 75... Kc7 {[%clk 0:00:11.8]}
76. Kc4 {[%clk 0:00:14.1]} 76... Kxb7 {[%clk 0:00:13.3]} 77. Kb3 {[%clk
0:00:15.7]} 77... Be5 {[%clk 0:00:14]} 78. Bxe5 {[%clk 0:00:15.6]} 78... a1=Q
{[%clk 0:00:15]} 79. Bxa1 {[%clk 0:00:15.8]} 1/2-1/2